fUST/lending_fUST_20240106
["ID","MTS","AMOUNT","RATE_DAILY","PERIOD"]
[310384232,1704533442436,-840.1,0.00039178,5]
[310384233,1704533442446,-500.0,0.00039178,5]
[310384234,1704533442455,-1318.4,0.00039178,5]
[310384235,1704533442465,-1421.0,0.00039178,5]
[310384236,1704533442476,-500.0,0.00039178,5]
[310384237,1704533442489,-417.15089141,0.00039178,5]
[310384238,1704533442501,-249.1264889,0.0003919,4]
[310384239,1704533442511,-1000.0,0.00039292,10]
[310384240,1704533442522,-200.59,0.000393,4]
[310384241,1704533442534,-422.70705592,0.00039452,5]
[310384242,1704533442544,-223.46103181,0.00039452,5]
[310384243,1704533442555,-535.62,0.00039452,5]
[310384244,1704533442567,-500.0,0.00039452,5]
[310384245,1704533442577,-500.0,0.00039452,5]
[310384246,1704533442588,-500.0,0.00039452,5]
[310384247,1704533442599,-500.0,0.00039452,5]
[310384248,1704533442611,-258.16133869,0.00039452,5]
[310384249,1704533442622,-17501.03,0.00039452,2]
[310384250,1704533442633,-1345.47,0.00039452,5]
[310384251,1704533442644,-500.0,0.00039452,5]
[310384252,1704533442655,-255.56943756,0.00039452,5]
[310384253,1704533442666,-840.1,0.00039452,5]
[310384254,1704533442678,-500.0,0.00039452,5]
[310384255,1704533442690,-1318.4,0.00039452,5]
[310384256,1704533442702,-1421.0,0.00039452,5]
[310384257,1704533442713,-500.0,0.00039452,5]
[310384258,1704533442726,-151.0,0.00039539,2]
[310384259,1704533442736,-1225.517291,0.0003963,2]
[310384260,1704533442746,-535.62,0.00039726,5]
[310384261,1704533442758,-500.0,0.00039726,5]
[310384262,1704533442769,-500.0,0.00039726,5]
[310384264,1704533442778,-500.0,0.00039726,5]
[310384266,1704533442787,-500.0,0.00039726,5]
[310384268,1704533442797,-17501.03,0.00039726,2]
[310384269,1704533442807,-1345.47,0.00039726,5]
[310384270,1704533442818,-500.0,0.00039726,5]
[310384271,1704533442830,-840.1,0.00039726,5]
[310384272,1704533442840,-500.0,0.00039726,5]
[310384273,1704533442852,-1318.4,0.00039726,5]
[310384274,1704533442863,-1421.0,0.00039726,5]
[310384275,1704533442874,-261.56085093,0.00039726,5]
[310384276,1704533442884,-1000.0,0.0003973,2]
[310384277,1704533442895,-603.4568888,0.00039795,7]
[310384279,1704533442905,-272.79400612,0.00039892,3]
[310384280,1704533442916,-150.0,0.000399,19]
[310384281,1704533442926,-163.151197,0.000399,2]
[310384282,1704533442936,-500.0,0.000399,7]
[310384284,1704533442946,-180.0,0.00039961,60]
[310384285,1704533442958,-4865.0,0.00039961,60]
[310384286,1704533442969,-9093.0,0.00039961,60]
[310384287,1704533442980,-283.0,0.00039961,60]
[310384288,1704533442991,-180.0,0.00039971,60]
[310384289,1704533443002,-4865.0,0.00039971,60]
[310384290,1704533443012,-9093.0,0.00039971,60]
[310384291,1704533443022,-283.0,0.00039971,60]
[310384292,1704533443032,-180.0,0.00039981,60]
[310384293,1704533443042,-4865.0,0.00039981,60]
[310384295,1704533443052,-9093.0,0.00039981,60]
[310384297,1704533443062,-283.0,0.00039981,60]
[310384298,1704533443073,-1011.4127017,0.00039983,2]
[310384299,1704533443083,-1288.93040301,0.00039989,4]
[310384300,1704533443093,-520.2185,0.00039989,4]
[310384302,1704533443103,-267.93527372,0.00039989,4]
[310384303,1704533443113,-365.01311122,0.00039989,4]
[310384305,1704533443123,-240.19118769,0.00039989,4]
[310384306,1704533443133,-2706.31966729,0.00039989,4]
[310384307,1704533443143,-747.30016846,0.00039989,2]
[310384308,1704533443153,-201.32200886,0.00039989,2]
[310384309,1704533443163,-154.87609912,0.00039989,2]
[310384310,1704533443173,-757.37329383,0.00039989,4]
[310384311,1704533443184,-200.0,0.00039989,4]
[310384312,1704533443195,-4385.89560927,0.00039989,2]
[310384313,1704533443205,-155.31192816,0.00039989,4]
[310384315,1704533443215,-290.57923662,0.00039989,4]
[310384316,1704533443228,-401.96524398,0.00039989,4]
[310384317,1704533443238,-900.11478533,0.00039989,4]
[310384318,1704533443249,-155.18150981,0.00039989,4]
[310384321,1704533443368,-160.57105795,0.00039989,4]
[310384322,1704533443379,-1576.61622724,0.00039989,4]
[310384324,1704533443388,-155.95644744,0.00039989,4]
[310384326,1704533443397,-2032.04564268,0.00039989,4]
[310384327,1704533443406,-642.10331134,0.0003999,4]
[310384328,1704533443415,-7854.81364128,0.0003999,4]
[310384329,1704533443424,-154.87609912,0.0003999,4]
[310384330,1704533443434,-4034.81482968,0.0003999,4]
[310384331,1704533443443,-297.63747051,0.00039991,4]
[310384332,1704533443452,-181.76933995,0.00039991,4]
[310384333,1704533443462,-4852.25712424,0.00039992,2]
[310384334,1704533443520,-10202.84952288,0.00039992,2]
[310384335,1704533443533,-592668.75931606,0.00039992,2]
[310384336,1704533443552,-154.87609912,0.00018837,2]
[310384337,1704533443562,-22891.36074039,0.00039992,2]
[310384338,1704533443574,-12320.0,0.00039992,2]
[310384339,1704533443586,-43061.32166172,0.00039992,2]
[310384340,1704533443628,-170.30280351,0.00019578,2]
[310384341,1704533443638,-233.70898787,0.00019578,2]
[310384342,1704533443650,-568.05650588,0.00019578,2]
[310384343,1704533443661,-2170.28173693,0.00019578,2]
[310384344,1704533443673,-2938.0080095,0.00019578,2]
[310384345,1704533443684,-2375.0910623,0.00019578,2]
[310384346,1704533443705,-522.22539219,0.00019578,2]
[310384347,1704533443717,-5657.58330645,0.00019578,2]
[310384356,1704533446270,-472.55486556,0.00019577,2]
[310384367,1704533571067,-520.78800019,0.00018837,2]
[310384368,1704533571088,-470.18258749,0.00018837,2]
[310384369,1704533571108,-4746.02941232,0.00018837,2]
[310384379,1704533643375,-2028.3271136,0.00018832,2]
[310384380,1704533643398,-154.86062544,0.00018832,2]
[310384381,1704533643419,-7858.42772256,0.00018832,2]
[310384382,1704533643439,-261.55260087,0.00018833,2]
[310384383,1704533643460,-525.20504904,0.00018833,2]
[310384384,1704533643591,-343.70654924,0.00018833,2]
[310384385,1704533643614,-1238.90884901,0.00018833,2]
[310384386,1704533643635,-245.65133887,0.00018833,2]
[310384387,1704533643656,-369.38802941,0.00018834,2]
[310384388,1704533643679,-2506.96614449,0.00018835,2]
[310384389,1704533643699,-399.67623567,0.00018836,2]
[310384390,1704533643719,-508.6242048,0.00018836,2]
[310384391,1704533643740,-101.705537,0.00018837,2]
[310384393,1704533709899,-178.37571644,0.00018827,2]
[310384394,1704533709919,-260.72265961,0.00018828,2]
[310384395,1704533709940,-520.52631159,0.00018829,2]
[310384396,1704533709960,-26.53441361,0.00018837,2]
[310384397,1704533709981,-607.84089875,0.00018837,2]
[310384401,1704533777312,-508.6242048,0.00018834,2]
[310384402,1704533777333,-78301.84997736,0.00018834,2]
[310384403,1704533777357,-154.86062544,0.00018835,2]
[310384404,1704533777380,-846.6651924,0.00018835,2]
[310384412,1704533927118,219.4949433,0.0001783,2]
[310384414,1704533943891,4780.5050567,0.0001783,2]
[310384415,1704533943919,20119.4949433,0.0001783,2]
[310384419,1704534003962,1033.17912544,0.0001783,2]
[310384420,1704534023966,1033.17912544,0.0001783,2]
[310384421,1704534045968,1033.17912544,0.0001783,2]
[310384422,1704534067246,589.93701342,0.0001783,2]
[310384423,1704534082157,973.03500616,0.00016934,2]
[310384424,1704534195997,958.78048825,0.00016934,2]
[310384425,1704534205256,7549.83407262,0.00016925,2]
[310384437,1704534225281,1351.22380215,0.00016925,2]
[310384446,1704534275393,155.16870564,0.00016925,2]
[310384542,1704534405968,24900.0,0.00017699,2]
[310384615,1704534632617,-176.40697611,0.00018675,2]
[310384616,1704534632626,-2028.3271136,0.00018676,2]
[310384617,1704534632636,-13572.53378342,0.00018676,2]
[310384618,1704534632651,-108.76590925,0.00018676,2]
[310384619,1704534632666,-369.38802941,0.00018677,2]
[310384620,1704534632678,-2506.96614449,0.00018677,2]
[310384621,1704534632690,-154.86062544,0.00018678,2]
[310384622,1704534632702,-1238.90884901,0.00018678,2]
[310384624,1704534632714,-78301.84997736,0.00018678,2]
[310384626,1704534632726,-1128.47779469,0.00018678,2]
[310384676,1704534638545,-260.72265961,0.00018675,2]
[310384677,1704534638558,-1289.91196152,0.00018675,2]
[310384678,1704534638568,-2128.40812852,0.00018678,2]
[310384679,1704534638579,-1735.74473674,0.00018679,2]
[310384680,1704534638590,-230.29533204,0.00018679,2]
[310384681,1704534638601,-36796.83907326,0.00018679,2]
[310384682,1704534638612,-263.74228503,0.00018806,2]
[310384683,1704534638623,-14795.05989547,0.0001882,2]
[310384684,1704534638634,-756.96799776,0.00018821,2]
[310384685,1704534638644,-2446.00486912,0.00018825,2]
[310384686,1704534638655,-321.7862038,0.00018828,2]
[310384687,1704534638666,-314.94821553,0.00018828,2]
[310384688,1704534638677,-469.27046295,0.00018832,2]
[310384689,1704534638689,-2068.68169854,0.00018832,2]
[310384690,1704534638700,-2098.68320007,0.00018832,2]
[310384691,1704534638711,-154.86062544,0.00018833,2]
[310384692,1704534638723,-578.50055777,0.0001897,2]
[310384693,1704534638734,-175.039678,0.00019178,2]
[310384694,1704534638745,-175.36639,0.00019178,2]
[310384695,1704534638756,-313.3559198,0.00019178,2]
[310384696,1704534638768,-172.29207667,0.00019556,2]
[310384697,1704534638778,-154.87609912,0.00019557,2]
[310384698,1704534638788,-169.37957406,0.00019557,2]
[310384700,1704534638808,-166.20606799,0.00019557,2]
[310384702,1704534638820,-154.87609912,0.00019557,2]
[310384704,1704534638831,-209.1581937,0.00019557,2]
[310384706,1704534638841,-294.97782064,0.00019557,2]
[310384708,1704534638854,-1979.7066071,0.00019557,2]
[310384710,1704534638867,-606.65446099,0.00019557,2]
[310384713,1704534638878,-301.06112899,0.00019558,2]
[310384715,1704534638892,-520.2185,0.00019558,2]
[310384717,1704534638904,-240.06355242,0.00019558,2]
[310384720,1704534638918,-7851.19956,0.00019571,2]
[310384722,1704534638930,-397.75358021,0.00019571,2]
[310384724,1704534638942,-522.54438634,0.00019571,2]
[310384727,1704534638956,-297.63747051,0.00019572,2]
[310384729,1704534638968,-348.48793146,0.00019572,2]
[310384731,1704534638980,-343.64508821,0.00019573,2]
[310384733,1704534638991,-15867.43030525,0.00019573,2]
[310384736,1704534639001,-1029.74071675,0.00019575,2]
[310384738,1704534639012,-2718.84091431,0.00019576,2]
[310384740,1704534639024,-5382.66125666,0.00019576,2]
[310384742,1704534639034,-310.51677973,0.00019576,2]
[310384744,1704534639045,-2470.92486746,0.00019577,2]
[310384746,1704534639057,-154.86062544,0.00019577,2]
[310384748,1704534639067,-40075.62967998,0.00019577,2]
[310384750,1704534639079,-150.0,0.00019578,3]
[310384753,1704534639093,-154.86062544,0.0002,2]
[310384755,1704534639110,-268.8999641,0.0002,2]
[310384758,1704534639123,-255.10803984,0.0002,2]
[310384760,1704534639135,-1194.15929222,0.0002,2]
[310384762,1704534639147,-154.86062544,0.0002,2]
[310384764,1704534639159,-2991.89800169,0.0002,2]
[310384767,1704534639172,-852.82114132,0.0002,2]
[310384769,1704534639183,-300.0,0.0002,2]
[310384771,1704534639194,-674.11738105,0.0002,2]
[310384773,1704534639205,-265.40144999,0.0002,2]
[310384775,1704534639217,-326.45250531,0.00021,2]
[310384778,1704534639228,-166.666666,0.00021918,2]
[310384780,1704534639239,-4912.75517152,0.00022,2]
[310384782,1704534639250,-156.72230709,0.00022,2]
[310384784,1704534639260,-3916.3398371,0.00022,2]
[310384786,1704534639271,-166.666666,0.00022431,2]
[310384788,1704534639281,-166.666666,0.00022944,2]
[310384790,1704534639291,-9910.17247127,0.00023,2]
[310384792,1704534639302,-2091.44093784,0.00023,2]
[310384794,1704534639312,-226.02383683,0.00023288,2]
[310384810,1704534639448,-500.0,0.00023288,2]
[310384811,1704534639459,-627.66673007,0.00023288,2]
[310384812,1704534639469,-500.0,0.00023288,2]
[310384814,1704534639478,-245.57883132,0.00023288,2]
[310384815,1704534639488,-166.666666,0.00023456,2]
[310384816,1704534639497,-166.666666,0.00023969,2]
[310384818,1704534639507,-2291.27896623,0.00024,2]
[310384819,1704534639516,-249.1264889,0.00024,2]
[310384820,1704534639526,-166.666666,0.00024482,2]
[310384821,1704534639536,-1321.80054486,0.000249,2]
[310384822,1704534639545,-154.86062544,0.00025,2]
[310384823,1704534639555,-762.80188617,0.00025,2]
[310384824,1704534639564,-2483.08597309,0.00025,2]
[310384825,1704534639574,-4707.01098899,0.00025,2]
[310384826,1704534639583,-3000.0,0.00025,2]
[310384827,1704534639592,-309.69032205,0.00025,2]
[310384828,1704534639602,-344.52854123,0.00025,2]
[310384829,1704534639611,-525.41295756,0.00026,2]
[310384830,1704534639621,-620.0,0.0002673,2]
[310384831,1704534639631,-620.00000295,0.0002673,2]
[310384832,1704534639640,-26178.2356188,0.00026969,2]
[310384833,1704534639650,-3388.41467337,0.00027,2]
[310384834,1704534639659,-6286.37,0.00027397,3]
[310384835,1704534639669,-620.0,0.00028066,2]
[310384836,1704534639678,-620.00000015,0.00028066,2]
[310384837,1704534639687,-620.0,0.0002947,2]
[310384838,1704534639697,-620.00000001,0.0002947,2]
[310384839,1704534639706,-312.6006807,0.000298,2]
[310384840,1704534639715,-498.36489966,0.0002985,5]
[310384841,1704534639724,-1051.39700449,0.0003,4]
[310384842,1704534639733,-685.91694047,0.0003,4]
[310384843,1704534639743,-7031.06378172,0.0003,4]
[310384844,1704534639752,-243.50020506,0.0003,4]
[310384845,1704534639761,-300.874421,0.0003,30]
[310384846,1704534639771,-638.96127835,0.0003,4]
[310384847,1704534639780,-6966.384136,0.0003,4]
[310384848,1704534639789,-175.0,0.0003,2]
[310384849,1704534639798,-3130.1642428,0.00030137,2]
[310384850,1704534639808,-103870.08264571,0.00031,4]
[310384851,1704534639818,-679.9486256,0.00032037,2]
[310384852,1704534639827,-175.0,0.00033,2]
[310384853,1704534639837,-1000.0,0.00034,7]
[310384854,1704534639846,-173.99544,0.00034247,2]
[310384855,1704534639857,-173.99544,0.00034247,120]
[310384856,1704534639866,-11919.66758038,0.000345,2]
[310384857,1704534639875,-1225.517291,0.00034521,2]
[310384858,1704534639885,-295.97703225,0.00035,3]
[310384859,1704534639894,-590.79111504,0.00035,2]
[310384860,1704534639904,-154.86062544,0.00035,4]
[310384861,1704534639913,-7798.15163609,0.00035,4]
[310384862,1704534639922,-2521.18507798,0.00035,4]
[310384863,1704534639931,-331.86855074,0.00035,4]
[310384864,1704534639941,-4349.6256334,0.00035,4]
[310384865,1704534639950,-3541.79156626,0.00035,2]
[310384866,1704534639959,-32072.95204209,0.00035,15]
[310384867,1704534639968,-1570.12292109,0.00035,4]
[310384868,1704534639978,-250.0,0.00035452,2]
[310384869,1704534639987,-4759.82139754,0.00035611,4]
[310384870,1704534639996,-309.75219824,0.00035614,2]
[310384871,1704534640008,-166.364766,0.00035616,120]
[310384872,1704534640017,-1225.517291,0.00035798,2]
[310384873,1704534640027,-493.67526304,0.00035917,2]
[310384874,1704534640039,-724.68376315,0.00035917,2]
[310384875,1704534640048,-200.10389627,0.00035917,2]
[310384876,1704534640057,-1210.84311732,0.00035917,2]
[310384877,1704534640067,-757.20968572,0.00035991,30]
[310384878,1704534640077,-231.82112647,0.00036,4]
[310384879,1704534640086,-175.0,0.00036,2]
[310384880,1704534640095,-747.75295105,0.00036458,2]
[310384881,1704534640106,-679.9486256,0.00036481,2]
[310384882,1704534640117,-5000.0,0.00036581,2]
[310384883,1704534640126,-5000.04,0.00036581,2]
[310384884,1704534640135,-5000.0,0.00036583,2]
[310384885,1704534640145,-5000.0,0.00036584,2]
[310384886,1704534640154,-5000.0,0.00036584,2]
[310384887,1704534640163,-4999.98,0.00036587,2]
[310384888,1704534640172,-5000.0,0.00036589,2]
[310384889,1704534640181,-5000.0,0.00036592,2]
[310384890,1704534640191,-5000.0,0.00036594,2]
[310384891,1704534640200,-5000.01,0.00036596,2]
[310384892,1704534640209,-498.9002565,0.00036597,4]
[310384893,1704534640219,-168.12033417,0.00036597,4]
[310384894,1704534640229,-500.0,0.00036597,4]
[310384895,1704534640239,-500.0,0.00036597,4]
[310384896,1704534640249,-500.0,0.00036597,4]
[310384897,1704534640258,-500.0,0.00036597,4]
[310384898,1704534640267,-463.03953536,0.00036597,4]
[310384899,1704534640276,-525.59520855,0.00036597,4]
[310384900,1704534640286,-500.0,0.00036597,4]
[310384901,1704534640296,-470.75004755,0.00036597,7]
[310384902,1704534640306,-434.18412349,0.00036597,7]
[310384903,1704534640316,-500.0,0.00036597,7]
[310384904,1704534640325,-5000.0,0.00036598,2]
[310384905,1704534640334,-15528.05810637,0.00036599,5]
[310384906,1704534640343,-4999.98,0.00036603,2]
[310384907,1704534640354,-5000.0,0.00036604,2]
[310384908,1704534640363,-5000.0,0.00036605,2]
[310384909,1704534640372,-5000.0,0.00036605,2]
[310384910,1704534640381,-5000.0,0.00036608,2]
[310384911,1704534640391,-5000.0,0.00036609,2]
[310384912,1704534640400,-5129.05,0.00036611,2]
[310384913,1704534640409,-4999.99,0.00036612,2]
[310384914,1704534640418,-5000.0,0.00036613,2]
[310384915,1704534640427,-4999.99,0.00036615,2]
[310384916,1704534640438,-5000.0,0.00036616,2]
[310384917,1704534640447,-5000.0,0.00036617,2]
[310384918,1704534640456,-5000.0,0.0003662,2]
[310384919,1704534640465,-5000.0,0.00036622,2]
[310384920,1704534640475,-5000.0,0.00036622,2]
[310384921,1704534640485,-5000.0,0.00036623,2]
[310384922,1704534640494,-4999.99,0.00036623,2]
[310384923,1704534640503,-5000.01,0.00036625,2]
[310384924,1704534640513,-754.38946744,0.00036702,2]
[310384925,1704534640522,-211.3379713,0.00036702,2]
[310384926,1704534640531,-1861.98288061,0.00036702,2]
[310384927,1704534640541,-169.004278,0.00036857,2]
[310384928,1704534640550,-197.440072,0.00036857,2]
[310384929,1704534640560,-197.440071,0.00036857,2]
[310384930,1704534640570,-169.004277,0.00036857,2]
[310384931,1704534640579,-355.392128,0.00036857,2]
[310384932,1704534640590,-1225.517291,0.00037075,2]
[310384933,1704534640600,-300.0,0.000372,19]
[310384934,1704534640609,-355.392128,0.00037318,2]
[310384935,1704534640619,-160.0,0.00037382,2]
[310384936,1704534640629,-150.461,0.00037382,2]
[310384937,1704534640638,-150.0,0.00037382,2]
[310384938,1704534640647,-344.0,0.000377,120]
[310384939,1704534640656,-151.0,0.00037733,2]
[310384940,1704534640666,-219.96908355,0.0003777,30]
[310384941,1704534640676,-197.440072,0.00037778,2]
[310384943,1704534640686,-197.440071,0.00037778,2]
[310384944,1704534640696,-169.004277,0.00037778,2]
[310384945,1704534640705,-355.392128,0.00037778,2]
[310384946,1704534640715,-7638.02461058,0.00037892,2]
[310384947,1704534640724,-154.86062544,0.00038,2]
[310384948,1704534640733,-2361.87259161,0.00038,30]
[310384949,1704534640743,-244.12597039,0.00038,30]
[310384951,1704534640753,-163.0,0.00038,2]
[310384952,1704534640763,-7412.83547527,0.00038,7]
[310384953,1704534640773,-150.8642222,0.00038118,2]
[310384954,1704534640782,-355.392128,0.00038239,2]
[310384955,1704534640791,-1225.517291,0.00038352,2]
[310384956,1704534640801,-506.48336976,0.00038356,5]
[310384957,1704534640810,-500.0,0.00038356,5]
[310384958,1704534640819,-597.78004292,0.00038356,5]
[310384959,1704534640829,-502.72305038,0.00038356,5]
[310384960,1704534640839,-510.97783528,0.00038356,5]
[310384961,1704534640848,-506.57414684,0.00038356,5]
[310384962,1704534640861,-500.0,0.00038356,2]
[310384963,1704534640871,-501.80203555,0.00038356,2]
[310384964,1704534640881,-511.16309898,0.00038356,5]
[310384965,1704534640891,-514.15754476,0.00038356,14]
[310384966,1704534640901,-500.0,0.00038356,5]
[310384967,1704534640911,-442.01695768,0.00038356,3]
[310384968,1704534640932,-500.0,0.00038356,5]
[310384969,1704534640943,-502.00846595,0.00038356,5]
[310384970,1704534640954,-500.0,0.00038356,5]
[310384971,1704534640964,-500.0,0.00038356,5]
[310384972,1704534640974,-500.0,0.00038356,5]
[310384973,1704534640983,-525.48480124,0.00038356,5]
[310384974,1704534640993,-500.0,0.00038356,5]
[310384975,1704534641004,-500.0,0.00038356,5]
[310384976,1704534641014,-299.46473181,0.00038356,5]
[310384977,1704534641023,-501.77406774,0.00038356,30]
[310384978,1704534641034,-502.2428841,0.00038356,5]
[310384979,1704534641044,-500.0,0.00038356,5]
[310384980,1704534641053,-500.0,0.00038356,5]
[310384981,1704534641062,-358.33337075,0.00038356,5]
[310384982,1704534641072,-1421.0,0.00038356,5]
[310384983,1704534641081,-500.0,0.00038356,5]
[310384984,1704534641091,-500.0,0.00038356,5]
[310384985,1704534641103,-535.62,0.00038356,5]
[310384986,1704534641112,-517.60482023,0.00038356,5]
[310384987,1704534641122,-500.0,0.00038356,5]
[310384988,1704534641133,-500.08697044,0.00038356,5]
[310384989,1704534641142,-500.0,0.00038356,5]
[310384990,1704534641153,-500.0,0.00038356,5]
[310384991,1704534641163,-500.0,0.00038356,5]
[310384992,1704534641173,-500.0,0.00038356,5]
[310384993,1704534641182,-515.0206101,0.00038356,5]
[310384994,1704534641191,-512.17019467,0.00038356,5]
[310384995,1704534641201,-500.0,0.00038356,5]
[310384996,1704534641210,-500.0,0.00038356,5]
[310384997,1704534641219,-500.0,0.00038356,5]
[310384998,1704534641229,-500.0,0.00038356,5]
[310384999,1704534641240,-500.0,0.00038356,5]
[310385000,1704534641249,-555.05021343,0.00038356,5]
[310385001,1704534641259,-500.0,0.00038356,5]
[310385002,1704534641269,-500.0,0.00038356,5]
[310385003,1704534641280,-500.0,0.00038356,5]
[310385004,1704534641289,-500.0,0.00038356,5]
[310385005,1704534641299,-500.0,0.00038356,5]
[310385006,1704534641308,-500.0,0.00038356,5]
[310385007,1704534641318,-1345.47,0.00038356,5]
[310385008,1704534641328,-500.0,0.00038356,5]
[310385009,1704534641338,-500.0,0.00038356,5]
[310385010,1704534641347,-500.0,0.00038356,5]
[310385011,1704534641359,-17501.03,0.00038356,2]
[310385012,1704534641369,-505.27064241,0.00038356,5]
[310385013,1704534641379,-504.7796127,0.00038356,5]
[310385014,1704534641388,-500.0,0.00038356,5]
[310385015,1704534641397,-511.097766,0.00038356,5]
[310385016,1704534641406,-500.0,0.00038356,5]
[310385017,1704534641415,-500.0,0.00038356,5]
[310385018,1704534641425,-505.29088612,0.00038356,5]
[310385019,1704534641435,-500.0,0.00038356,5]
[310385020,1704534641444,-500.0,0.00038356,5]
[310385021,1704534641453,-1318.4,0.00038356,5]
[310385022,1704534641462,-500.0,0.00038356,5]
[310385023,1704534641471,-840.1,0.00038356,5]
[310385024,1704534641481,-500.0,0.00038356,5]
[310385025,1704534641491,-500.0,0.00038356,5]
[310385026,1704534641500,-500.0,0.00038356,5]
[310385027,1704534641509,-500.0,0.00038356,5]
[310385028,1704534641518,-533.63353953,0.00038356,5]
[310385029,1704534641528,-500.0,0.00038356,5]
[310385031,1704534641537,-500.0,0.00038356,5]
[310385032,1704534641547,-500.0,0.00038356,5]
[310385033,1704534641556,-500.0,0.00038356,5]
[310385034,1704534641565,-500.0,0.00038356,5]
[310385035,1704534641574,-500.0,0.00038356,5]
[310385036,1704534641584,-500.0,0.00038356,5]
[310385037,1704534641593,-194.38429124,0.00038356,7]
[310385039,1704534641605,-500.0,0.00038356,5]
[310385040,1704534641614,-500.0,0.00038356,5]
[310385041,1704534641623,-500.0,0.00038356,5]
[310385042,1704534641633,-500.0,0.00038356,5]
[310385043,1704534641642,-500.0,0.00038356,5]
[310385044,1704534641652,-500.0,0.00038356,2]
[310385045,1704534641662,-500.0,0.00038356,5]
[310385046,1704534641671,-507.78877084,0.0003863,5]
[310385047,1704534641680,-523.03150165,0.0003863,5]
[310385048,1704534641690,-500.0,0.0003863,5]
[310385049,1704534641699,-500.0,0.0003863,5]
[310385050,1704534641708,-507.01927649,0.0003863,5]
[310385051,1704534641718,-507.07556743,0.0003863,5]
[310385052,1704534641727,-511.00435323,0.0003863,5]
[310385053,1704534641737,-505.81350492,0.0003863,5]
[310385054,1704534641748,-500.0,0.0003863,5]
[310385055,1704534641758,-510.00178322,0.0003863,5]
[310385056,1704534641767,-1421.0,0.0003863,5]
[310385057,1704534641777,-509.44134385,0.0003863,5]
[310385058,1704534641787,-535.62,0.0003863,5]
[310385059,1704534641797,-418.68360299,0.0003863,5]
[310385060,1704534641808,-505.41923659,0.0003863,5]
[310385061,1704534641818,-505.08561459,0.0003863,5]
[310385062,1704534641828,-500.0,0.0003863,5]
[310385063,1704534641838,-526.05114037,0.0003863,5]
[310385064,1704534641847,-529.41381062,0.0003863,5]
[310385065,1704534641858,-509.48262239,0.0003863,5]
[310385066,1704534641867,-527.67346704,0.0003863,5]
[310385067,1704534641877,-500.0,0.0003863,5]
[310385068,1704534641887,-511.15113817,0.0003863,5]
[310385069,1704534641896,-508.31365666,0.0003863,5]
[310385070,1704534641905,-500.0,0.0003863,5]
[310385071,1704534641914,-550.81688216,0.0003863,5]
[310385072,1704534641924,-329.10985589,0.0003863,5]
[310385073,1704534641933,-256.03265185,0.0003863,5]
[310385074,1704534641942,-500.0,0.0003863,5]
[310385075,1704534641952,-1345.47,0.0003863,5]
[310385076,1704534641961,-500.0,0.0003863,5]
[310385077,1704534641971,-229.52217026,0.0003863,5]
[310385078,1704534641980,-511.43644294,0.0003863,5]
[310385079,1704534641990,-17501.03,0.0003863,2]
[310385080,1704534641999,-511.82509961,0.0003863,5]
[310385081,1704534642008,-514.17023555,0.0003863,5]
[310385082,1704534642018,-500.0,0.0003863,5]
[310385083,1704534642027,-506.09346854,0.0003863,5]
[310385084,1704534642038,-514.40614223,0.0003863,5]
[310385085,1704534642146,-1318.4,0.0003863,5]
[310385086,1704534642155,-507.20724551,0.0003863,5]
[310385087,1704534642164,-840.1,0.0003863,5]
[310385088,1704534642173,-517.62035945,0.0003863,5]
[310385089,1704534642182,-520.9424481,0.0003863,5]
[310385090,1704534642191,-525.09020232,0.0003863,5]
[310385091,1704534642201,-502.12330031,0.0003863,5]
[310385092,1704534642210,-500.0,0.0003863,5]
[310385093,1704534642219,-503.84331703,0.0003863,5]
[310385094,1704534642229,-500.0,0.0003863,5]
[310385095,1704534642238,-500.0,0.0003863,5]
[310385096,1704534642247,-500.0,0.0003863,5]
[310385097,1704534642256,-500.0,0.0003863,5]